fUSD/lending_fUSD_20241104
["ID","MTS","AMOUNT","RATE_DAILY","PERIOD"]
[341223511,1730689845696,-248.413874,0.00037534,7]
[341223512,1730689845708,-249.88697,0.00037534,7]
[341223513,1730689845718,-249.88697,0.00037534,7]
[341223514,1730689845727,-249.88697,0.00037534,7]
[341223515,1730689845737,-249.88697,0.00037534,7]
[341223516,1730689845748,-370.53510978,0.00037542,5]
[341223517,1730689845758,-859.77,0.00037547,2]
[341223518,1730689845768,-500.0,0.00037547,2]
[341223519,1730689845778,-500.0,0.00037547,2]
[341223520,1730689845788,-522.70377034,0.00037547,2]
[341223521,1730689845797,-500.0,0.00037547,2]
[341223522,1730689845807,-500.0,0.00037547,2]
[341223523,1730689845817,-500.0,0.00037547,2]
[341223524,1730689845826,-575.48608717,0.00037547,2]
[341223525,1730689845836,-500.0,0.00037547,2]
[341223526,1730689845846,-500.0,0.00037547,2]
[341223527,1730689845857,-500.0,0.00037547,2]
[341223528,1730689845868,-500.0,0.00037547,2]
[341223529,1730689845878,-500.0,0.00037547,2]
[341223530,1730689845888,-500.0,0.00037547,2]
[341223531,1730689845898,-161.64462118,0.00037547,2]
[341223532,1730689845981,-500.0,0.00036898,2]
[341223533,1730689845991,-500.0,0.00037172,2]
[341223534,1730689846003,-500.0,0.00037446,2]
[341223535,1730689846013,-40.94775,0.00037547,2]
[341223536,1730689846025,-297.40762882,0.00037547,2]
[341223537,1730689846036,-337.42715818,0.00037547,2]
[341223538,1730689846050,-162.57284182,0.00037547,2]
[341223539,1730689846061,-500.0,0.00037547,2]
[341223540,1730689846071,-500.0,0.00037547,2]
[341223541,1730689846082,-500.0,0.00037547,2]
[341223542,1730689846092,-500.0,0.00037547,2]
[341223543,1730689846103,-500.0,0.00037547,2]
[341223544,1730689846115,-110.15565456,0.00037547,2]
[341223545,1730689846127,-389.84434544,0.00037547,2]
[341223546,1730689846137,-500.0,0.00037547,2]
[341223547,1730689846147,-428.58998408,0.00037547,2]
[341223548,1730689846159,-71.41001592,0.00037547,2]
[341223549,1730689846169,-500.0,0.00037547,2]
[341223550,1730689846179,-500.0,0.00037547,2]
[341223551,1730689846189,-295.66498407,0.00037547,2]
[341223552,1730689846285,-204.33501593,0.00037547,2]
[341223553,1730689846295,-77.0826172,0.00037547,2]
[341223581,1730690708229,150.0,0.00016,2]
[341223582,1730690708256,2405579.85677847,0.00016,2]
[341223583,1730690713925,225.44389531,0.0001592,15]
[341223584,1730690729634,4055.67720287,0.000101,2]
[341223594,1730690755232,15012.0,0.00015,10]
[341223595,1730690792938,577.05377947,0.00015,2]
[341223596,1730690821719,1849.1814555,0.00015,14]
[341223597,1730690821741,3377.72665697,0.00015,14]
[341223600,1730690853098,157.3,0.00015342,2]
[341223601,1730690878816,12339.44373455,0.00013,15]
[341223602,1730690884085,410.30671165,0.00015,10]
[341223603,1730690884550,437211.16959229,0.00015,2]
[341223604,1730690884575,23000.0,0.00015,2]
[341223605,1730690884600,977036.13089732,0.00015,2]
[341223606,1730690884627,2000000.0,0.00015,2]
[341223607,1730690884652,432160.60957353,0.00015,2]
[341223610,1730690925078,300.0,0.00015,2]
[341223612,1730690928286,2152.17439848,0.0001421,7]
[341223641,1730691032067,-1332.63115809,0.000236,2]
[341223651,1730691038002,-2617.65527934,0.000236,2]
[341223652,1730691038013,-492.1710413,0.000236,2]
[341223653,1730691038298,-1803.42118798,0.000236,2]
[341223654,1730691038307,-353.305968,0.000236,2]
[341223655,1730691038320,-1485.0,0.000237,2]
[341223656,1730691038329,-366.0,0.000237,2]
[341223657,1730691038338,-290.46,0.000252,2]
[341223658,1730691038347,-200.0,0.000296,2]
[341223659,1730691038356,-764.68057413,0.00032,30]
[341223660,1730691038608,-718.0996348,0.00032,30]
[341223663,1730691040008,-66.72235033,0.00032,30]
[341223664,1730691040018,-300.0,0.000337,2]
[341223665,1730691040028,-339.77044967,0.00033948,2]
[341223666,1730691040138,-161.43955033,0.00033948,2]
[341223667,1730691040148,-644.71835513,0.00035,2]
[341223668,1730691040159,-1097.65702065,0.00035,2]
[341223669,1730691040171,-1130.21191036,0.00035,2]
[341223670,1730691040271,-147.13529805,0.00035,2]
[341223671,1730691040280,-469.29,0.00035449,2]
[341223672,1730691040290,-200.0,0.0003579,2]
[341223673,1730691040299,-150.0,0.00035864,7]
[341223674,1730691040308,-250.0,0.00035901,2]
[341223675,1730691040320,-177.91,0.00035903,2]
[341223676,1730691040329,-156.0,0.00036156,2]
[341223677,1730691040338,-500.0,0.00036157,2]
[341223678,1730691040347,-312.67549341,0.00036157,2]
[341223696,1730691046291,-187.32450659,0.00036157,2]
[341223697,1730691046302,-500.0,0.00036157,2]
[341223698,1730691046312,-500.0,0.00036157,2]
[341223699,1730691046323,-500.0,0.00036157,2]
[341223700,1730691046333,-500.0,0.00036157,2]
[341223701,1730691046344,-500.0,0.00036157,2]
[341223702,1730691046355,-500.0,0.00036157,2]
[341223703,1730691046369,-157.61725344,0.00036157,2]
[341223704,1730691046382,-119.81953997,0.00036164,2]
[341223709,1730691779591,-156.83,0.00015342,2]
[341223714,1730691936597,222.95,0.000231,30]
[341223720,1730692029550,157.71,0.00015342,2]
[341223801,1730692232392,-181.628,0.00016176,2]
[341223802,1730692232403,-277.62721106,0.0003,2]
[341223803,1730692232414,-32.61678894,0.0003,2]
[341223804,1730692232424,-310.244,0.0003,2]
[341223805,1730692232434,-355.02957169,0.00033846,2]
[341223806,1730692232480,-304.68042831,0.00033846,2]
[341223807,1730692232490,-361.4,0.00035342,2]
[341223808,1730692232500,-361.4,0.00035478,2]
[341223809,1730692232510,-361.4,0.00035478,2]
[341223810,1730692232519,-141.24823774,0.00035478,2]
[341223811,1730692232532,-232.63176226,0.00035478,2]
[341223812,1730692232542,-338.09,0.00035478,2]
[341223813,1730692232552,-361.4,0.00035578,2]
[341223814,1730692232563,-361.4,0.00035578,2]
[341223815,1730692232573,-50.47823774,0.00035578,2]
[341223816,1730692232632,-310.92176226,0.00035578,2]
[341223818,1730692232642,-9.58533604,0.00035578,2]
[341223825,1730692238485,-351.81466396,0.00035578,2]
[341223826,1730692238495,-250.0,0.00035624,2]
[341223827,1730692238504,-1000.0,0.00035661,2]
[341223828,1730692238514,-721.06,0.0003569,2]
[341223829,1730692238523,-150.0,0.00035725,2]
[341223830,1730692238533,-162.391,0.0003588,120]
[341223831,1730692238542,-200.0,0.00035907,2]
[341223832,1730692238552,-150.0,0.0003597,7]
[341223833,1730692238561,-241.58,0.00036,2]
[341223834,1730692238571,-361.4,0.00036,2]
[341223835,1730692238580,-5000.0,0.00036,2]
[341223836,1730692238589,-361.4,0.00036,2]
[341223837,1730692238599,-361.4,0.00036,2]
[341223838,1730692238608,-659.71,0.0003611,2]
[341223839,1730692238617,-213.72,0.00036188,2]
[341223840,1730692238626,-361.4,0.000362,2]
[341223841,1730692238635,-162.92,0.00036232,2]
[341223842,1730692238645,-965.05,0.00036413,2]
[341223843,1730692238654,-784.55,0.00036849,2]
[341223844,1730692238663,-760.73,0.00036849,2]
[341223845,1730692238673,-760.73,0.00036849,2]
[341223846,1730692238682,-292.5,0.0003699,10]
[341223847,1730692238692,-243.75,0.0003699,10]
[341223848,1730692238701,-203.12,0.0003699,10]
[341223849,1730692238710,-299.5,0.0003699,47]
[341223850,1730692238719,-1915.8521677,0.00037,3]
[341223851,1730692238736,-2796.94337919,0.00037,3]
[341223852,1730692238747,-419.16373027,0.00037,3]
[341223853,1730692238766,-24496.56428062,0.00037,3]
[341223854,1730692238777,-1277.00386117,0.00037,3]
[341223855,1730692238792,-3222.12255538,0.00037,3]
[341223856,1730692238803,-279.36,0.00037,3]
[341223888,1730692240377,-559.38,0.00037,3]
[341223889,1730692240389,-577.29297945,0.00037,3]
[341223890,1730692240400,-3942.25889343,0.00037,3]
[341223891,1730692240411,-2724.57719306,0.00037,3]
[341223892,1730692240608,-17748.65103922,0.00037,3]
[341223893,1730692240619,-340.85036335,0.00037,3]
[341223919,1730693078875,150.0,0.00016,2]
[341223934,1730693217220,157.17,0.00015342,2]
[341223950,1730693432203,-1470.0,0.000222,2]
[341223951,1730693432213,-200.0,0.000296,2]
[341223952,1730693432223,-300.0,0.000337,2]
[341223953,1730693432232,-677.61,0.00033888,2]
[341223954,1730693432242,-1592.018059,0.0003547,2]
[341223955,1730693432251,-250.0,0.00035649,2]
[341223956,1730693432260,-388.08,0.00035752,2]
[341223957,1730693432270,-150.0,0.00035782,7]
[341223958,1730693432279,-603.73,0.00035786,2]
[341223959,1730693432288,-800.0,0.00035846,2]
[341223960,1730693432297,-162.8,0.00036148,2]
[341223961,1730693432306,-677.61,0.00036152,2]
[341223962,1730693432316,-200.0,0.00036205,2]
[341223963,1730693432325,-420.35743639,0.00036244,2]
[341223964,1730693432334,-263.66,0.00036454,2]
[341223965,1730693432343,-420.35743639,0.00036532,2]
[341223966,1730693432352,-1997.52920693,0.0003663,2]
[341223967,1730693432362,-482.107,0.00036899,2]
[341223968,1730693432371,-217.28596795,0.000369,15]
[341223969,1730693432381,-169.27,0.00036989,10]
[341223970,1730693432391,-846.37,0.00036989,10]
[341223971,1730693432402,-194.71954586,0.00036998,15]
[341223972,1730693432411,-239.6,0.00036998,47]
[341223973,1730693432421,-500.0,0.00036998,2]
[341223974,1730693432430,-1436.88912578,0.00036998,3]
[341223975,1730693432439,-11181.53938526,0.00036998,3]
[341223976,1730693432454,-601.44257345,0.00036998,3]
[341223977,1730693432466,-368.48867155,0.00036998,3]
[341223978,1730693432485,-1233.71751728,0.00036998,3]
[341223979,1730693432499,-2706.53146261,0.00036998,3]
[341223980,1730693432510,-6384.55875055,0.00036998,3]
[341224061,1730693440135,-416.95425974,0.000369,2]
[341224062,1730693440144,-14931.68174026,0.00036998,3]
[341224063,1730693440292,-86297.37350136,0.00036998,3]
[341224085,1730693746033,157.3,0.00015342,2]
[341224087,1730694304767,156.83,0.00015342,2]
[341224591,1730694632476,-343.56,0.00022,2]
[341224592,1730694638434,-281.55,0.00022,2]
[341224593,1730694638661,-976.53617361,0.00022,2]
[341224594,1730694638672,-6315.95029253,0.00022,2]
[341224595,1730694638716,-2372.25066913,0.00022,2]
[341224598,1730694640356,-494.804373,0.00022,2]
[341224637,1730695521307,150.0,0.000231,30]
[341224772,1730695831462,-300.0,0.00019725,2]
[341224773,1730695831472,-396.63711264,0.00022,2]
[341224774,1730695831678,-17136.02799013,0.00022,2]
[341224775,1730695831690,-6413.59550823,0.00022,2]
[341224776,1730695831788,-146.7798804,0.00022,2]
[341224777,1730695831798,-370.0,0.000221,2]
[341224778,1730695831809,-1038.70477038,0.000225,2]
[341224779,1730695831820,-119.67143105,0.000225,2]
[341224780,1730695831833,-203.42283648,0.00023,2]
[341224781,1730695831843,-461.56226925,0.00027171,2]
[341224782,1730695831854,-1976.11957799,0.00027171,2]
[341224783,1730695831866,-827.13712285,0.00027171,2]
[341224792,1730695839598,-448.83889,0.0002189,2]
[341224793,1730695839607,-1.16111,0.00027171,2]
[341224794,1730695839709,-300.0,0.00027171,2]
[341224795,1730695839766,-300.0,0.00027171,2]
[341224828,1730695845764,-2347.61332934,0.00027171,2]
[341224851,1730696948590,157.3,0.00015342,2]
[341224906,1730697031829,-287.19098315,0.0001726,2]
[341224907,1730697031838,-1214.80901685,0.000219,2]
[341224908,1730697031993,-229.19098315,0.000219,2]
[341224909,1730697032004,-161.0,0.000237,2]
[341224910,1730697032013,-160.37,0.00026649,2]
[341224911,1730697032023,-940.0,0.00027171,2]
[341224912,1730697032032,-209.38923124,0.00027171,2]
[341224913,1730697032042,-8085.7891391,0.0002752,2]
[341224914,1730697032051,-955.8014077,0.00027539,2]
[341224915,1730697032061,-2715.72,0.00027558,2]
[341224916,1730697032074,-200.0,0.000296,2]
[341224917,1730697032084,-500.0,0.0003,2]
[341224918,1730697032094,-736.7,0.00031595,2]
[341224919,1730697032103,-166.37,0.00032302,2]
[341224921,1730697032112,-545.07,0.00032976,2]
[341224923,1730697032121,-250.0,0.00033267,2]
[341224925,1730697032130,-210.93,0.00033517,2]
[341224927,1730697032139,-15163.78693547,0.00033688,2]
[341224935,1730697037803,-8736.21306453,0.00033688,2]
[341224936,1730697037814,-300.0,0.000337,2]
[341224937,1730697037823,-150.0,0.0003376,7]
[341224938,1730697037832,-1000.0,0.00033808,2]
[341224939,1730697037841,-736.7,0.00033859,2]
[341224940,1730697037850,-180.9,0.00033975,2]
[341224941,1730697037860,-1781.122,0.00034483,2]
[341224942,1730697037869,-162.98,0.00034498,2]
[341224943,1730697037878,-2216.92602385,0.0003499,2]
[341224944,1730697037887,-590.74,0.0003499,10]
[341224945,1730697037897,-1013.62840696,0.00034999,2]
[341224946,1730697037906,-2111.22406956,0.00035,10]
[341224947,1730697037916,-151.0,0.00035,7]
[341224948,1730697037927,-179.511562,0.00035,7]
[341224949,1730697037936,-998.598258,0.00035,7]
[341224950,1730697037946,-998.598258,0.00035,7]
[341224951,1730697037955,-219.359302,0.00035,7]
[341224952,1730697037964,-248.057795,0.00035,7]
[341224953,1730697037974,-154.100857,0.00035,7]
[341224954,1730697037983,-369.468063,0.00035,7]
[341224955,1730697037995,-369.468063,0.00035,7]
[341224956,1730697038007,-369.468063,0.00035,7]
[341224957,1730697038017,-369.468063,0.00035,7]
[341224958,1730697038026,-173.889711,0.00035,7]
[341224959,1730697038036,-173.889711,0.00035,7]
[341224960,1730697038046,-173.889711,0.00035,7]
[341224961,1730697038056,-173.889711,0.00035,7]
[341224962,1730697038065,-582.504683,0.00035,7]
[341224963,1730697038076,-582.504683,0.00035,7]
[341224964,1730697038086,-582.504683,0.00035,7]
[341224965,1730697038098,-582.504683,0.00035,7]
[341224966,1730697038108,-174.920879,0.00035,7]
[341224967,1730697038119,-174.920879,0.00035,7]
[341224968,1730697038130,-174.920879,0.00035,7]
[341224970,1730697038140,-174.920879,0.00035,7]
[341224972,1730697038151,-151.0,0.00035,7]
[341224974,1730697038162,-151.0,0.00035,7]
[341224976,1730697038171,-151.0,0.00035,7]
[341224978,1730697038181,-156.084752,0.00035,7]
[341224980,1730697038193,-500.0,0.00035,14]
[341224982,1730697038204,-712.3176105,0.00035,2]
[341224985,1730697038217,-12781.89747283,0.00035,2]
[341224986,1730697038229,-954.046,0.00035,2]
[341224987,1730697038252,-661.09988052,0.00035,2]
[341224988,1730697038263,-381.33465368,0.00035,2]
[341224989,1730697038280,-10441.46181616,0.00035,2]
[341224990,1730697038293,-1966.89684553,0.00035,2]
[341224991,1730697039580,-3781.87101743,0.00035,2]
[341225000,1730697045705,-50905.53571872,0.00035,2]
[341225001,1730697045869,-3676.8728,0.00035,2]
[341225055,1730698231869,-373.0,0.000219,2]
[341225056,1730698231881,-160.37,0.00027798,2]
[341225057,1730698231896,-200.0,0.000296,2]
[341225058,1730698231908,-358.37047365,0.0003,2]
[341225059,1730698231920,-714.75,0.00032953,2]
[341225060,1730698231932,-6916.38613954,0.00032953,2]
[341225061,1730698231943,-300.0,0.000337,2]
[341225062,1730698231955,-7891.56054633,0.00034,7]
[341225063,1730698231966,-272.53,0.00034748,2]
[341225064,1730698231977,-250.0,0.00034872,2]
[341225065,1730698231988,-500.16,0.00034879,2]
[341225066,1730698231998,-650.0,0.0003488,2]
[341225067,1730698232012,-277.28,0.00034906,2]
[341225068,1730698232024,-150.0,0.00034925,7]
[341225069,1730698232035,-800.0,0.00034929,2]
[341225070,1730698232047,-5743.91,0.00034969,2]
[341225071,1730698232058,-153.45391494,0.00034999,2]
[341225072,1730698232068,-794.3671404,0.00034999,2]
[341225073,1730698232078,-268.65196266,0.00035,7]
[341225074,1730698232090,-30042.82045941,0.00035,2]
[341225075,1730698232100,-6816.7834751,0.00035025,2]
[341225076,1730698232112,-810.7308406,0.00035049,2]
[341225077,1730698232124,-200.0,0.00035205,2]
[341225078,1730698232135,-714.75,0.00035217,2]
[341225079,1730698232147,-162.98,0.00035423,2]
[341225080,1730698232157,-166.62,0.00035454,2]
[341225081,1730698232169,-683.9602,0.00035872,2]
[341225082,1730698232182,-295.57445,0.00035872,7]
[341225083,1730698232194,-295.57445,0.00035872,7]
[341225084,1730698232206,-151.0,0.00035872,7]
[341225085,1730698232217,-151.0,0.00035872,7]
[341225086,1730698232226,-151.0,0.00035872,7]
[341225087,1730698232237,-151.0,0.00035872,7]
[341225088,1730698232247,-5000.0,0.00035908,5]
[341225089,1730698232257,-151.0,0.00035972,7]
[341225090,1730698232268,-151.0,0.00035972,7]
[341225091,1730698232279,-151.0,0.00035972,7]
[341225092,1730698232291,-898.738432,0.00035972,7]
[341225093,1730698232303,-898.738432,0.00035972,7]
[341225094,1730698232314,-466.003746,0.00035972,7]
[341225095,1730698232324,-152.0,0.00036127,3]
[341225096,1730698232336,-191.68,0.00036262,44]
[341225097,1730698232347,-846.0867808,0.00036445,2]
[341225098,1730698232358,-295.57445,0.00036445,7]
[341225099,1730698232369,-295.57445,0.00036445,7]
[341225100,1730698232381,-151.0,0.00036445,7]
[341225101,1730698232391,-151.0,0.00036445,7]
[341225102,1730698232401,-151.0,0.00036445,7]
[341225103,1730698232411,-812.0,0.00036449,2]
[341225104,1730698232421,-2926.006,0.00036449,2]
[341225105,1730698232641,-872.074,0.00036449,2]
[341225106,1730698232652,-365.425,0.00036449,2]
[341225107,1730698232664,-151.0,0.00036449,7]
[341225108,1730698232675,-151.0,0.00036449,7]
[341225109,1730698232687,-151.0,0.00036449,7]
[341225110,1730698232697,-151.0,0.00036449,7]
[341225111,1730698232708,-898.738432,0.00036449,7]
[341225112,1730698232718,-898.738432,0.00036449,7]
[341225113,1730698232728,-466.003746,0.00036449,7]
[341225114,1730698232739,-151.0,0.00036595,7]
[341225115,1730698232749,-151.0,0.00036595,7]
[341225116,1730698232763,-151.0,0.00036595,7]
[341225117,1730698232773,-898.738432,0.00036595,7]
[341225118,1730698232783,-898.738432,0.00036595,7]
[341225119,1730698232793,-325.0794311,0.00036595,7]
[341225120,1730698232807,-140.9243149,0.00036595,7]
[341225121,1730698232817,-149.9076851,0.00036595,7]
[341225122,1730698232832,-145.6667649,0.00036595,7]
[341225123,1730698232842,-295.57445,0.00036595,7]
[341225124,1730698232852,-295.57445,0.00036595,7]
[341225125,1730698232862,-295.57445,0.00036595,7]
[341225126,1730698232872,-432.22744673,0.00036595,2]
[341225127,1730698232883,-151.0,0.00036595,7]
[341225128,1730698232893,-151.0,0.00036595,7]
[341225129,1730698232903,-151.0,0.00036595,7]
[341225130,1730698232914,-151.0,0.00036595,7]
[341225131,1730698232924,-151.0,0.00036595,7]
[341225132,1730698232935,-151.0,0.00036595,7]
[341225133,1730698232945,-413.1662,0.00036595,2]
[341225134,1730698232956,-6407.5666,0.00036595,2]
[341225135,1730698232966,-488.735,0.00036595,2]
[341225136,1730698232977,-277.28,0.00036652,2]
[341225137,1730698232987,-179.83,0.00036685,2]
[341225138,1730698232998,-500.0,0.00036694,2]
[341225139,1730698233013,-898.738432,0.00036694,7]
[341225140,1730698233024,-898.738432,0.00036694,7]
[341225141,1730698233036,-500.0,0.00036694,2]
[341225142,1730698233047,-500.0,0.00036694,2]
[341225143,1730698233059,-466.003746,0.00036694,7]
[341225144,1730698233070,-562.05733493,0.00036694,2]
[341225145,1730698233082,-500.0,0.00036694,2]
[341225146,1730698233093,-500.0,0.00036694,2]
[341225147,1730698233104,-500.0,0.00036694,2]
[341225148,1730698233115,-500.0,0.00036694,2]
[341225149,1730698233126,-500.0,0.00036694,2]
[341225150,1730698233137,-500.0,0.00036694,2]
[341225151,1730698233147,-7178.05,0.00036694,2]
[341225152,1730698233157,-500.0,0.00036694,2]
[341225153,1730698233168,-500.0,0.00036694,2]
[341225154,1730698233179,-500.0,0.00036694,2]
[341225155,1730698233189,-500.0,0.00036694,2]
[341225156,1730698233200,-500.0,0.00036694,2]
[341225157,1730698233210,-500.0,0.00036694,2]
[341225158,1730698233220,-500.0,0.00036694,2]
[341225159,1730698233231,-500.0,0.00036694,2]
[341225160,1730698233241,-332.29995791,0.00036694,2]
[341225161,1730698233252,-500.0,0.00036694,2]
[341225162,1730698233267,-295.57445,0.00036694,7]
[341225163,1730698233278,-295.57445,0.00036694,7]
[341225164,1730698233288,-295.57445,0.00036694,7]
[341225165,1730698233300,-295.57445,0.00036694,7]
[341225166,1730698233310,-500.0,0.00036694,2]
[341225167,1730698233321,-894.97,0.00036694,2]
[341225168,1730698233331,-500.0,0.00036694,2]
[341225169,1730698233343,-263.02366734,0.00036694,2]
[341225170,1730698233352,-602.17855147,0.00036694,2]
[341225171,1730698233361,-151.0,0.00036694,7]
[341225172,1730698233370,-500.0,0.00036694,2]
[341225173,1730698233379,-500.0,0.00036694,2]
[341225174,1730698233525,-151.0,0.00036694,7]
[341225175,1730698233575,-500.0,0.00036694,2]
[341225176,1730698233592,-500.0,0.00036694,2]
[341225177,1730698233601,-1077.66684433,0.00036694,3]
[341225178,1730698233611,-223821.01137055,0.00036694,3]
[341225179,1730698233620,-151.0,0.00036695,7]
[341225180,1730698233631,-151.0,0.00036695,7]
[341225181,1730698233640,-636.24324021,0.00036695,2]
[341225182,1730698233649,-500.0,0.00036695,2]
[341225183,1730698233661,-204.35634078,0.00036695,2]
[341225184,1730698233675,-500.0,0.00036695,2]
[341225185,1730698233684,-376.35698638,0.00036695,2]
[341225186,1730698233693,-500.0,0.00036695,2]
[341225187,1730698233702,-500.0,0.00036695,2]
[341225188,1730698233711,-500.0,0.00036695,2]
[341225189,1730698233721,-500.0,0.00036695,2]
[341225190,1730698233731,-500.0,0.00036695,2]
[341225191,1730698233740,-500.0,0.00036695,2]
[341225192,1730698233749,-500.0,0.00036695,2]
[341225193,1730698233761,-311.98495594,0.00036695,2]
[341225194,1730698233770,-521.50907238,0.00036695,2]
[341225195,1730698233779,-500.0,0.00036695,2]
[341225196,1730698233788,-535.44519337,0.00036695,2]
[341225197,1730698233797,-500.0,0.00036695,2]
[341225198,1730698233807,-558.28402986,0.00036695,2]
[341225199,1730698233818,-522.05818582,0.00036695,2]
[341225200,1730698233827,-510.1090732,0.00036695,2]
[341225201,1730698233836,-168.90792077,0.00036695,2]
[341225202,1730698233845,-510.82826335,0.00036695,2]
[341225203,1730698233854,-500.0,0.00036695,2]
[341225204,1730698233865,-504.00185837,0.00036695,2]
[341225205,1730698233874,-501.72777242,0.00036695,2]
[341225206,1730698233884,-502.40669181,0.00036695,2]
[341225207,1730698233893,-511.26056267,0.00036695,2]
[341225208,1730698233903,-500.0,0.00036695,2]
[341225209,1730698233912,-502.61742392,0.00036695,2]
[341225210,1730698233922,-504.56778531,0.00036695,2]
[341225211,1730698233932,-501.52058117,0.00036695,2]
[341225212,1730698233942,-500.0,0.00036695,2]
[341225213,1730698233951,-516.10326027,0.00036695,2]
[341225214,1730698233961,-502.31824879,0.00036695,2]
[341225215,1730698233971,-509.4601216,0.00036695,2]
[341225216,1730698233980,-505.29627146,0.00036695,2]
[341225217,1730698233990,-505.42026769,0.00036695,2]
[341225218,1730698233999,-504.94214924,0.00036695,2]
[341225219,1730698234010,-500.0,0.00036695,2]
[341225220,1730698234019,-503.86055633,0.00036695,2]
[341225221,1730698234029,-508.5475883,0.00036695,2]
[341225222,1730698234038,-500.0,0.00036695,2]
[341225223,1730698234049,-500.0,0.00036695,2]
[341225224,1730698234058,-500.0,0.00036695,2]
[341225225,1730698234067,-500.0,0.00036695,2]
[341225226,1730698234077,-521.01356128,0.00036695,2]
[341225227,1730698234087,-519.86962367,0.00036695,2]
[341225228,1730698234096,-525.97925519,0.00036695,2]
[341225229,1730698234106,-504.42574435,0.00036695,2]
[341225230,1730698234115,-501.05576261,0.00036695,2]
[341225231,1730698234124,-502.62073157,0.00036695,2]
[341225232,1730698234133,-160.12565828,0.00036695,2]
[341225233,1730698234142,-500.0,0.00036695,2]
[341225234,1730698234151,-505.84299477,0.00036695,2]
[341225235,1730698234161,-502.72868363,0.00036695,2]
[341225236,1730698234170,-500.0,0.00036695,2]
[341225237,1730698234179,-505.47998173,0.00036695,2]
[341225238,1730698234188,-502.81226103,0.00036695,2]
[341225239,1730698234197,-502.80627081,0.00036695,2]
[341225240,1730698234206,-503.4781547,0.00036695,2]
[341225241,1730698234215,-500.0,0.00036695,2]
[341225242,1730698234224,-501.89920532,0.00036695,2]
[341225243,1730698234233,-503.83133318,0.00036695,2]
[341225244,1730698234242,-502.09319102,0.00036695,2]
[341225245,1730698234251,-151.0,0.00036695,7]
[341225246,1730698234262,-151.0,0.00036695,7]
[341225247,1730698234271,-253.854031,0.00036695,7]
[341225248,1730698234280,-500.0,0.00036695,2]
[341225249,1730698234290,-504.00299195,0.00036695,2]
[341225250,1730698234298,-503.08634253,0.00036695,2]
[341225251,1730698234307,-151.0,0.00036695,7]
[341225252,1730698234316,-151.0,0.00036695,7]
[341225253,1730698234326,-151.0,0.00036695,7]
[341225254,1730698234335,-151.0,0.00036695,7]
[341225255,1730698234344,-151.0,0.00036695,7]
[341225256,1730698234353,-522.5183973,0.00036695,2]
[341225257,1730698234362,-151.0,0.00036695,7]
[341225258,1730698234372,-151.0,0.00036695,7]
[341225259,1730698234381,-500.0,0.00036695,2]
[341225260,1730698234390,-151.0,0.00036695,7]
[341225261,1730698234399,-151.0,0.00036695,7]
[341225262,1730698234408,-500.0,0.00036695,2]
[341225263,1730698234417,-151.0,0.00036695,7]
[341225264,1730698234426,-151.0,0.00036695,7]
[341225265,1730698234436,-231.734071,0.00036695,7]
[341225266,1730698234446,-500.0,0.00036695,2]
[341225267,1730698234455,-500.0,0.00036695,2]
[341225268,1730698234464,-898.738432,0.00036695,7]